lending/lending_fUSD_20250316
["ID","MTS","AMOUNT","RATE_DAILY","PERIOD"]
[356245865,1742136643596,-532.26781376,0.00036,120]
[356245867,1742136643606,-1000.0,0.00036564,2]
[356245869,1742136643617,-211.30122196,0.00036728,7]
[356245871,1742136643626,-532.26781376,0.00037,120]
[356245873,1742136643639,-1991.30332177,0.0003729,3]
[356245875,1742136643652,-873.04153788,0.0003729,3]
[356245878,1742136643665,-276.07196702,0.0003729,3]
[356245990,1742136645917,-5830.79951427,0.0003729,3]
[356245992,1742136645927,-154.54,0.000373,31]
[356245994,1742136645937,-154.54,0.000373,31]
[356245996,1742136645946,-154.54,0.000373,31]
[356245997,1742136645956,-154.54,0.000373,31]
[356245998,1742136645965,-154.54,0.000373,31]
[356245999,1742136645975,-154.54,0.000373,31]
[356246000,1742136645985,-154.54,0.000373,31]
[356246001,1742136645995,-154.54,0.000373,31]
[356246002,1742136646004,-154.54,0.000373,31]
[356246003,1742136646013,-154.54,0.000373,31]
[356246004,1742136646023,-532.26781376,0.00038,120]
[356246005,1742136646032,-917.94,0.00038153,2]
[356246006,1742136646043,-509.70261338,0.000383,20]
[356246007,1742136646053,-7641.33316775,0.00038346,3]
[356246008,1742136646062,-8971.21634094,0.00038346,3]
[356246009,1742136646071,-500.0,0.00038356,15]
[356246010,1742136646080,-500.0,0.00038356,15]
[356246011,1742136646090,-500.0,0.00038356,15]
[356246012,1742136646099,-500.0,0.00038356,15]
[356246013,1742136646109,-500.0,0.00038356,15]
[356246014,1742136646118,-500.0,0.00038356,15]
[356246015,1742136646127,-500.0,0.00038356,15]
[356246016,1742136646139,-500.0,0.00038356,15]
[356246017,1742136646148,-500.0,0.00038356,15]
[356246018,1742136646158,-500.0,0.00038356,15]
[356246019,1742136646167,-500.0,0.00038356,15]
[356246020,1742136646177,-500.0,0.00038356,15]
[356246021,1742136646188,-500.0,0.00038356,15]
[356246022,1742136646197,-291.68216249,0.00038356,15]
[356246023,1742136646206,-500.0,0.00038356,15]
[356246024,1742136646216,-500.0,0.00038356,15]
[356246025,1742136646225,-500.0,0.00038356,15]
[356246026,1742136646235,-500.0,0.00038356,15]
[356246027,1742136646245,-500.0,0.00038356,15]
[356246028,1742136646254,-500.0,0.00038356,15]
[356246029,1742136646264,-995.9,0.00038836,120]
[356246030,1742136646273,-165.43750055,0.00038879,2]
[356246031,1742136646283,-5000.0,0.000389,20]
[356246032,1742136646292,-7641.33316775,0.00038951,3]
[356246033,1742136646302,-26913.6490228,0.00038958,3]
[356246034,1742136646311,-6543.3386963,0.0003896,3]
[356246035,1742136646322,-1371.9392316,0.0003896,3]
[356246036,1742136646334,-768.650575,0.0003896,3]
[356246037,1742136646346,-9258.504179,0.0003896,3]
[356246038,1742136646356,-45847.9990065,0.00038969,3]
[356246039,1742136646365,-30565.332671,0.00038969,3]
[356246040,1742136646374,-7641.33316775,0.00038971,3]
[356246041,1742136646384,-7641.33316775,0.0003898,3]
[356246042,1742136646394,-8971.21634094,0.0003898,3]
[356246043,1742136646402,-8971.21634094,0.0003898,3]
[356246044,1742136646411,-7434.4952425,0.0003899,14]
[356246045,1742136646421,-7641.33316775,0.0003899,3]
[356246046,1742136646431,-7641.33316775,0.0003899,3]
[356246047,1742136646440,-17942.4326819,0.0003899,3]
[356246048,1742136646450,-532.26781376,0.00039,120]
[356246050,1742136646459,-10300.83713073,0.00039,120]
[356246052,1742136646469,-922.0,0.00039,5]
[356246054,1742136646478,-22923.9995033,0.00039,3]
[356246056,1742136646487,-17942.4326819,0.00039,3]
[356246058,1742136646497,-211.30122196,0.00039003,8]
[356246060,1742136646506,-36188.25027507,0.0003901,2]
[356246062,1742136646515,-453.84167,0.0003988,45]
[356246064,1742136646524,-7641.33316775,0.0003996,3]
[356246066,1742136646534,-7641.33316775,0.0003996,3]
[356246068,1742136646543,-8971.21634094,0.00039963,3]
[356246069,1742136646552,-161.28084044,0.00039973,5]
[356246070,1742136646561,-325.55855762,0.00039973,5]
[356246071,1742136646571,-438.80601659,0.00039973,5]
[356246072,1742136646584,-500.22232959,0.00039973,5]
[356246073,1742136646594,-198.45985541,0.00039973,5]
[356246074,1742136646603,-207.89082092,0.00039973,5]
[356246075,1742136646613,-152.26642227,0.00039973,5]
[356246076,1742136646623,-500.23375884,0.00039973,2]
[356246077,1742136646632,-500.0,0.00039973,5]
[356246078,1742136646641,-15282.6663355,0.0003998,3]
[356246079,1742136646651,-8971.21634094,0.0003998,3]
[356246080,1742136646662,-15282.6663355,0.0003999,3]
[356246081,1742136646671,-125597.028773,0.0003999,3]
[356246082,1742136646681,-999.0,0.00039999,120]
[356246083,1742136646690,-30000.0,0.0004,90]
[356246084,1742136646700,-532.26781376,0.0004,120]
[356246085,1742136646709,-959.29304753,0.0004,20]
[356246086,1742136646719,-31810.50388598,0.0004,30]
[356246087,1742136646728,-165365.80945457,0.0004,14]
[356246088,1742136646737,-161.44965543,0.0004,30]
[356246089,1742136646747,-6299.95490336,0.0004,14]
[356246090,1742136646757,-7384.7,0.0004,14]
[356246091,1742136646766,-1500.0,0.0004,120]
[356246092,1742136646776,-514.01,0.0004,120]
[356246093,1742136646785,-917.94,0.00040417,2]
[356246094,1742136646794,-1329.902,0.00040986,2]
[356246095,1742136646805,-2034.0,0.00040986,2]
[356246096,1742136646814,-1419.0,0.00040986,2]
[356246097,1742136646823,-641.0,0.00040986,2]
[356246098,1742136646832,-571.0,0.00040986,2]
[356246099,1742136646842,-787.0,0.00040986,2]
[356246100,1742136646852,-1428.0,0.00040986,2]
[356246101,1742136646861,-1271.0,0.00040986,2]
[356246102,1742136646871,-541.0,0.00040986,2]
[356246103,1742136646881,-907.0,0.00040986,2]
[356246104,1742136646890,-3934.0,0.00040986,2]
[356246105,1742136646899,-151.0,0.00040986,2]
[356246106,1742136646909,-532.26781376,0.00041,120]
[356246107,1742136646918,-165.43750054,0.00041009,2]
[356246108,1742136646927,-154.54,0.000411,31]
[356246109,1742136646936,-154.54,0.000411,31]
[356246110,1742136646945,-154.54,0.000411,31]
[356246111,1742136646955,-154.54,0.000411,31]
[356246112,1742136646964,-154.54,0.000411,31]
[356246113,1742136646974,-154.54,0.000411,31]
[356246114,1742136646983,-154.54,0.000411,31]
[356246115,1742136646993,-154.54,0.000411,31]
[356246116,1742136647002,-154.54,0.000411,31]
[356246117,1742136647011,-154.54,0.000411,31]
[356246118,1742136647020,-1000.0,0.00041134,2]
[356246119,1742136647031,-211.30122196,0.00041279,9]
[356246120,1742136647041,-532.0,0.00041699,2]
[356246121,1742136647051,-532.26781376,0.00042,120]
[356246122,1742136647060,-2903.00617545,0.00042,120]
[356246123,1742136647070,-157.57,0.00042583,2]
[356246124,1742136647079,-917.94,0.0004268,2]
[356246125,1742136647089,-532.26781376,0.00043,120]
[356246126,1742136647098,-165.43750054,0.0004314,10]
[356246127,1742136647108,-995.9,0.00043151,120]
[356246128,1742136647118,-211.30122196,0.00043555,9]
[356246129,1742136647127,-442.2,0.00043699,30]
[356246130,1742136647139,-442.2,0.00043699,30]
[356246131,1742136647147,-442.2,0.00043699,30]
[356246132,1742136647157,-393.22,0.00043699,30]
[356246133,1742136647166,-1279.0,0.00043986,2]
[356246134,1742136647177,-2033.0,0.00043986,2]
[356246135,1742136647186,-787.0,0.00043986,2]
[356246136,1742136647196,-541.0,0.00043986,2]
[356246137,1742136647206,-532.26781376,0.00044,120]
[356246138,1742136647215,-1500.0,0.00044,30]
[356246139,1742136647224,-1500.0,0.00044,30]
[356246140,1742136647233,-1500.0,0.00044,30]
[356246141,1742136647243,-150.0,0.000441,30]
[356246142,1742136647252,-150.0,0.000441,30]
[356246143,1742136647262,-150.0,0.000441,30]
[356246144,1742136647272,-150.0,0.000441,30]
[356246145,1742136647281,-150.0,0.00044358,30]
[356246146,1742136647291,-266.48819124,0.000445,120]
[356246147,1742136647300,-150.0,0.00044616,30]
[356246148,1742136647310,-3021.37274289,0.0004465,120]
[356246149,1742136647319,-442.02,0.00044682,30]
[356246150,1742136647328,-779.41,0.00044682,30]
[356246151,1742136647337,-779.41,0.00044682,30]
[356246152,1742136647346,-433.2,0.00044682,30]
[356246153,1742136647356,-150.0,0.00044874,30]
[356246154,1742136647366,-453.84167,0.0004488,45]
[356246155,1742136647376,-154.54,0.000449,39]
[356246156,1742136647395,-154.54,0.000449,39]
[356246157,1742136647404,-154.54,0.000449,39]
[356246158,1742136647413,-154.54,0.000449,39]
[356246159,1742136647423,-154.54,0.000449,39]
[356246160,1742136647432,-154.54,0.000449,39]
[356246161,1742136647441,-154.54,0.000449,39]
[356246162,1742136647451,-154.54,0.000449,39]
[356246163,1742136647460,-154.54,0.000449,39]
[356246164,1742136647470,-154.54,0.000449,39]
[356246165,1742136647479,-165.518612,0.0004491,30]
[356246166,1742136647489,-917.94,0.00044944,2]
[356246167,1742136647499,-5000.0,0.00045,30]
[356246168,1742136647508,-5000.0,0.00045,60]
[356246169,1742136647518,-532.26781376,0.00045,120]
[356246170,1742136647528,-2596.4482046,0.00045,30]
[356246171,1742136647538,-3000.0,0.00045,120]
[356246172,1742136647548,-201.0,0.00045,120]
[356246173,1742136647557,-242.0,0.00045038,2]
[356246174,1742136647569,-150.0,0.0004508,30]
[356246175,1742136647579,-7384.7,0.000451,14]
[356246176,1742136647589,-150.0,0.00045132,30]
[356246177,1742136647599,-242.0,0.00045156,2]
[356246178,1742136647610,-684.9761018,0.00045177,4]
[356246179,1742136647621,-165.43750054,0.0004527,19]
[356246180,1742136647632,-242.0,0.00045275,2]
[356246181,1742136647642,-150.0,0.00045325,30]
[356246182,1742136647652,-150.0,0.00045389,30]
[356246183,1742136647662,-242.0,0.00045393,2]
[356246184,1742136647672,-499.99400027,0.00045452,10]
[356246185,1742136647682,-242.0,0.00045512,2]
[356246186,1742136647692,-720.65924765,0.000456,120]
[356246187,1742136647702,-721.07505,0.000456,20]
[356246188,1742136647711,-371.43,0.00045603,120]
[356246189,1742136647720,-150.0,0.0004563,2]
[356246190,1742136647730,-242.0,0.0004563,2]
[356246191,1742136647739,-1117.51843743,0.00045644,10]
[356246192,1742136647751,-1055.86663426,0.00045644,10]
[356246193,1742136647760,-150.0,0.00045647,30]
[356246194,1742136647770,-1000.0,0.00045705,2]
[356246195,1742136647781,-242.0,0.00045749,2]
[356246196,1742136647791,-150.0,0.00045803,2]
[356246197,1742136647800,-211.30122196,0.00045831,10]
[356246198,1742136647811,-242.0,0.00045867,2]
[356246199,1742136647821,-150.0,0.00045869,2]
[356246200,1742136647830,-150.0,0.00045896,2]
[356246201,1742136647840,-150.0,0.00045905,30]
[356246202,1742136647849,-242.0,0.00045986,2]
[356246203,1742136647858,-447.76992468,0.00046,120]
[356246204,1742136647868,-5642.51,0.00046,120]
[356246205,1742136647884,-150.0,0.0004606,30]
[356246206,1742136647894,-242.0,0.00046104,2]
[356246207,1742136647904,-150.0,0.00046162,2]
[356246208,1742136647914,-150.0,0.00046163,30]
[356246209,1742136647923,-5480.43,0.00046199,8]
[356246210,1742136647933,-892.95,0.00046199,8]
[356246211,1742136647944,-242.0,0.00046223,2]
[356246212,1742136647953,-150.0,0.00046229,2]
[356246213,1742136647963,-150.0,0.00046272,2]
[356246214,1742136647973,-242.0,0.00046341,2]
[356246215,1742136647983,-739.75,0.00046384,31]
[356246216,1742136647993,-5467.586457,0.000464,2]
[356246217,1742136648002,-87838.54525455,0.000464,2]
[356246218,1742136648012,-150.0,0.00046421,30]
[356246219,1742136648022,-5000.0,0.00046438,120]
[356246220,1742136648031,-242.0,0.0004646,2]
[356246221,1742136648041,-150.0,0.00046461,2]
[356246222,1742136648050,-169.59,0.00046499,120]
[356246223,1742136648060,-5500.0,0.000465,120]
[356246224,1742136648070,-250000.0,0.000465,120]
[356246225,1742136648081,-151.0,0.000465,14]
[356246226,1742136648091,-205.967026,0.000465,14]
[356246227,1742136648101,-151.0,0.000465,14]
[356246228,1742136648111,-151.0,0.000465,14]
[356246229,1742136648121,-204.890179,0.000465,14]
[356246230,1742136648133,-151.0,0.000465,14]
[356246231,1742136648143,-151.0,0.000465,14]
[356246232,1742136648152,-151.0,0.000465,14]
[356246233,1742136648162,-182.114587,0.000465,14]
[356246234,1742136648172,-151.0,0.000465,14]
[356246235,1742136648183,-151.0,0.000465,14]
[356246236,1742136648193,-151.0,0.000465,14]
[356246237,1742136648202,-151.0,0.000465,14]
[356246238,1742136648213,-13445.0,0.00046548,120]
[356246239,1742136648223,-150.0,0.0004655,30]
[356246240,1742136648232,-502.05779348,0.00046574,2]
[356246241,1742136648242,-262.0,0.00046574,120]
[356246242,1742136648252,-500.0,0.00046574,7]
[356246243,1742136648262,-151.0,0.00046575,14]
[356246244,1742136648272,-151.0,0.00046575,14]
[356246245,1742136648282,-154.24803,0.00046575,14]
[356246246,1742136648292,-151.0,0.00046575,14]
[356246247,1742136648302,-151.0,0.00046575,14]
[356246248,1742136648311,-152.06472,0.00046575,14]
[356246249,1742136648321,-151.0,0.00046575,14]
[356246250,1742136648331,-151.0,0.00046575,14]
[356246251,1742136648341,-500.0,0.00046575,120]
[356246252,1742136648351,-500.0,0.00046575,120]
[356246253,1742136648361,-500.0,0.00046575,120]
[356246254,1742136648372,-500.0,0.00046575,120]
[356246255,1742136648386,-164.14,0.00046575,120]
[356246256,1742136648398,-500.0,0.00046575,120]
[356246257,1742136648408,-500.0,0.00046575,120]
[356246258,1742136648419,-500.0,0.00046575,120]
[356246259,1742136648429,-500.0,0.00046575,120]
[356246260,1742136648440,-500.0,0.00046575,120]
[356246261,1742136648452,-500.0,0.00046575,120]
[356246262,1742136648464,-500.0,0.00046575,120]
[356246263,1742136648475,-500.0,0.00046575,120]
[356246264,1742136648486,-198.48,0.00046575,120]
[356246265,1742136648497,-500.0,0.00046575,120]
[356246266,1742136648507,-500.0,0.00046575,120]
[356246267,1742136648517,-500.0,0.00046575,120]
[356246268,1742136648528,-500.0,0.00046575,120]
[356246269,1742136648539,-500.0,0.00046575,120]
[356246270,1742136648550,-500.0,0.00046575,120]
[356246271,1742136648560,-500.0,0.00046575,120]
[356246272,1742136648575,-500.0,0.00046575,120]
[356246273,1742136648586,-500.0,0.00046575,120]
[356246274,1742136648597,-500.0,0.00046575,120]
[356246275,1742136648610,-500.0,0.00046575,120]
[356246276,1742136648621,-500.0,0.00046575,120]
[356246277,1742136648634,-500.0,0.00046575,120]
[356246278,1742136648648,-500.18874749,0.00046575,120]
[356246279,1742136648658,-500.0,0.00046575,120]
[356246280,1742136648669,-500.0,0.00046575,120]
[356246281,1742136648680,-500.0,0.00046575,120]
[356246282,1742136648690,-500.0,0.00046575,120]
[356246283,1742136648701,-500.0,0.00046575,120]
[356246284,1742136648711,-500.0,0.00046575,120]
[356246285,1742136648721,-500.0,0.00046575,120]
[356246286,1742136648731,-500.0,0.00046575,120]
[356246287,1742136648742,-500.0,0.00046575,120]
[356246288,1742136648752,-500.0,0.00046575,120]
[356246289,1742136648762,-500.0,0.00046575,120]
[356246290,1742136648772,-500.0,0.00046575,120]
[356246291,1742136648782,-151.0,0.00046575,14]
[356246292,1742136648793,-500.0,0.00046575,120]
[356246293,1742136648802,-500.0,0.00046575,120]
[356246294,1742136648812,-500.0,0.00046575,120]
[356246295,1742136648822,-500.0,0.00046575,120]
[356246296,1742136648832,-500.0,0.00046575,120]
[356246297,1742136648842,-500.0,0.00046575,120]
[356246298,1742136648851,-278.03796459,0.00046575,120]
[356246299,1742136648862,-500.0,0.00046575,120]
[356246300,1742136648872,-500.0,0.00046575,120]
[356246301,1742136648884,-506.30837662,0.00046575,120]
[356246302,1742136648896,-151.0,0.00046575,14]
[356246303,1742136648906,-506.10246658,0.00046575,120]
[356246304,1742136648916,-500.0,0.00046575,120]
[356246305,1742136648926,-500.0,0.00046575,120]
[356246306,1742136648936,-500.0,0.00046575,120]
[356246307,1742136648945,-500.0,0.00046575,120]
[356246308,1742136648955,-500.0,0.00046575,120]
[356246309,1742136648965,-500.0,0.00046575,120]
[356246310,1742136648974,-500.0,0.00046575,120]
[356246311,1742136648984,-500.0,0.00046575,120]
[356246312,1742136648996,-500.0,0.00046575,120]
[356246313,1742136649005,-500.0,0.00046575,120]
[356246314,1742136649015,-500.0,0.00046575,120]
[356246315,1742136649025,-500.0048092,0.00046575,120]
[356246316,1742136649035,-500.0,0.00046575,120]
[356246317,1742136649044,-500.0,0.00046575,120]
[356246318,1742136649054,-500.0,0.00046575,120]
[356246319,1742136649065,-165.91,0.00046575,120]
[356246320,1742136649075,-500.0,0.00046575,120]
[356246321,1742136649086,-500.0,0.00046575,120]
[356246322,1742136649095,-500.0,0.00046575,120]
[356246323,1742136649105,-445.28691156,0.00046575,120]
[356246324,1742136649115,-500.0,0.00046575,120]
[356246325,1742136649125,-151.0,0.00046575,14]
[356246326,1742136649138,-500.0,0.00046575,120]
[356246327,1742136649149,-500.0,0.00046575,120]
[356246328,1742136649158,-609.11,0.00046575,120]
[356246329,1742136649168,-500.0,0.00046575,120]
[356246330,1742136649178,-500.0,0.00046575,120]
[356246331,1742136649189,-500.0,0.00046575,120]
[356246332,1742136649200,-480.27,0.00046575,120]
[356246333,1742136649210,-500.0,0.00046575,120]
[356246334,1742136649220,-500.0,0.00046575,120]
[356246335,1742136649231,-500.0,0.00046575,120]
[356246336,1742136649241,-500.0,0.00046575,120]
[356246337,1742136649251,-500.0,0.00046575,120]
[356246338,1742136649261,-500.0,0.00046575,120]
[356246339,1742136649271,-500.0,0.00046575,120]
[356246340,1742136649281,-500.0,0.00046575,120]
[356246341,1742136649292,-500.0,0.00046575,120]
[356246342,1742136649304,-500.0,0.00046575,120]
[356246343,1742136649315,-500.0,0.00046575,120]
[356246344,1742136649325,-500.0,0.00046575,120]
[356246345,1742136649335,-500.0,0.00046575,120]
[356246346,1742136649346,-500.0,0.00046575,120]
[356246347,1742136649356,-500.0,0.00046575,120]
[356246348,1742136649367,-389.43947738,0.00046575,120]
[356246349,1742136649378,-500.0,0.00046575,120]
[356246350,1742136649393,-500.0,0.00046575,120]
[356246351,1742136649403,-500.0,0.00046575,120]
[356246352,1742136649413,-500.0,0.00046575,120]
[356246353,1742136649424,-500.0,0.00046575,120]
[356246354,1742136649434,-500.0,0.00046575,120]
[356246355,1742136649444,-500.0,0.00046575,120]
[356246356,1742136649453,-500.0,0.00046575,120]
[356246357,1742136649464,-500.0,0.00046575,120]
[356246358,1742136649474,-500.0,0.00046575,120]
[356246359,1742136649484,-326.43403236,0.00046575,120]
[356246360,1742136649494,-500.0,0.00046575,120]
[356246361,1742136649506,-500.0,0.00046575,120]
[356246362,1742136649516,-500.0,0.00046575,120]
[356246363,1742136649526,-500.65869176,0.00046575,120]
[356246364,1742136649537,-500.0,0.00046575,120]
[356246365,1742136649547,-500.0,0.00046575,120]
[356246366,1742136649558,-493.18933413,0.00046575,120]
[356246367,1742136649569,-500.0,0.00046575,120]
[356246368,1742136649580,-500.0,0.00046575,120]
[356246369,1742136649591,-500.0,0.00046575,120]
[356246370,1742136649602,-275.76,0.00046575,120]
[356246371,1742136649614,-500.0,0.00046575,120]
[356246372,1742136649624,-500.0,0.00046575,120]
[356246373,1742136649638,-500.0,0.00046575,120]
[356246374,1742136649648,-500.0,0.00046575,120]
[356246375,1742136649659,-500.0,0.00046575,120]
[356246376,1742136649669,-500.0,0.00046575,120]
[356246377,1742136649680,-151.0,0.00046575,14]
[356246378,1742136649690,-500.0,0.00046575,120]
[356246379,1742136649701,-500.0,0.00046575,120]
[356246380,1742136649711,-500.0,0.00046575,120]
[356246381,1742136649721,-500.0,0.00046575,120]
[356246382,1742136649732,-154.24,0.00046575,120]
[356246383,1742136649742,-500.0,0.00046575,120]
[356246384,1742136649753,-500.0,0.00046575,120]
[356246385,1742136649915,-500.0,0.00046575,120]
[356246386,1742136649926,-500.0,0.00046575,120]
[356246387,1742136649936,-500.0,0.00046575,120]
[356246388,1742136649946,-500.0,0.00046575,120]
[356246389,1742136649956,-500.0,0.00046575,120]
[356246390,1742136649966,-500.0,0.00046575,120]
[356246391,1742136649976,-500.0,0.00046575,120]
[356246392,1742136649986,-500.0,0.00046575,120]
[356246393,1742136649996,-500.0,0.00046575,120]
[356246394,1742136650006,-500.0,0.00046575,120]
[356246395,1742136650016,-500.0,0.00046575,120]
[356246396,1742136650025,-500.0,0.00046575,120]
[356246397,1742136650035,-500.0,0.00046575,120]
[356246398,1742136650045,-500.0,0.00046575,120]
[356246399,1742136650055,-500.0,0.00046575,120]
[356246400,1742136650065,-500.0,0.00046575,120]
[356246401,1742136650074,-500.0,0.00046575,120]
[356246402,1742136650084,-158.32096834,0.00046575,120]
[356246403,1742136650864,-341.67903166,0.00046575,120]
[356246404,1742136650874,-500.0,0.00046575,120]
[356246405,1742136650886,-500.0,0.00046575,120]
[356246406,1742136650896,-500.0,0.00046575,120]
[356246407,1742136650905,-596.66,0.00046575,120]
[356246408,1742136650914,-500.0,0.00046575,120]
[356246409,1742136650923,-500.0,0.00046575,120]
[356246410,1742136650933,-500.0,0.00046575,120]
[356246411,1742136650942,-500.0,0.00046575,120]
[356246412,1742136650952,-500.0,0.00046575,120]
[356246413,1742136650961,-500.0,0.00046575,120]
[356246414,1742136650971,-151.0,0.00046575,14]
[356246415,1742136650980,-500.0,0.00046575,120]
[356246416,1742136650990,-500.0,0.00046575,120]
[356246417,1742136650999,-500.0,0.00046575,120]
[356246418,1742136651009,-500.0,0.00046575,120]
[356246419,1742136651019,-500.0,0.00046575,120]
[356246420,1742136651029,-500.0,0.00046575,120]
[356246421,1742136651038,-281.67,0.00046575,120]
[356246422,1742136651048,-505.40608611,0.00046575,120]
[356246423,1742136651057,-155.620429,0.00046575,14]
[356246424,1742136651067,-574.37939162,0.00046575,120]
[356246425,1742136651076,-500.0,0.00046575,120]
[356246426,1742136651086,-500.0,0.00046575,120]
[356246427,1742136651095,-500.0,0.00046575,120]
[356246428,1742136651105,-505.26005648,0.00046575,120]
[356246429,1742136651115,-500.0,0.00046575,120]
[356246430,1742136651124,-500.0,0.00046575,120]
[356246431,1742136651137,-516.89,0.00046575,120]
[356246432,1742136651147,-576.79591475,0.00046575,120]
[356246433,1742136651156,-500.0,0.00046575,120]
[356246434,1742136651166,-500.0,0.00046575,120]
[356246435,1742136651176,-500.0,0.00046575,120]
[356246436,1742136651186,-500.0,0.00046575,120]
[356246437,1742136651195,-500.0,0.00046575,120]
[356246438,1742136651205,-500.0,0.00046575,120]
[356246439,1742136651217,-500.0,0.00046575,120]
[356246440,1742136651226,-500.0,0.00046575,120]
[356246441,1742136651236,-500.0,0.00046575,120]
[356246442,1742136651246,-500.0,0.00046575,120]
[356246443,1742136651256,-500.0,0.00046575,120]
[356246444,1742136651266,-500.0,0.00046575,120]
[356246445,1742136651279,-151.0,0.00046575,14]
[356246446,1742136651289,-500.0,0.00046575,120]
[356246447,1742136651298,-500.0,0.00046575,120]
[356246448,1742136651308,-500.0,0.00046575,120]
[356246449,1742136651318,-500.0,0.00046575,120]
[356246450,1742136651327,-500.0,0.00046575,120]
[356246451,1742136651337,-500.0,0.00046575,120]
[356246452,1742136651346,-500.0,0.00046575,120]
[356246453,1742136651356,-422.59,0.00046575,120]
[356246454,1742136651366,-1000.0,0.00046575,30]
[356246455,1742136651375,-1000.0,0.00046575,30]
[356246456,1742136651387,-1000.0,0.00046575,30]
[356246457,1742136651397,-1000.0,0.00046575,30]
[356246458,1742136651407,-1000.0,0.00046575,30]
[356246459,1742136651416,-1000.0,0.00046575,30]
[356246460,1742136651426,-1000.0,0.00046575,30]
[356246461,1742136651436,-897.89734009,0.00046575,30]
[356246462,1742136651446,-150.0,0.00046575,120]
[356246463,1742136651455,-151.449556,0.00046575,14]
[356246464,1742136651465,-500.41139669,0.00046575,120]
[356246465,1742136651475,-180.07,0.00046575,120]
[356246466,1742136651485,-151.0,0.00046575,14]
[356246467,1742136651494,-500.0,0.00046575,120]
[356246468,1742136651504,-500.0,0.00046575,120]
[356246469,1742136651513,-500.0,0.00046575,120]
[356246470,1742136651523,-500.0,0.00046575,120]
[356246471,1742136651533,-500.0,0.00046575,120]
[356246472,1742136651546,-500.0,0.00046575,120]
[356246473,1742136651556,-559.81059718,0.00046575,120]
[356246474,1742136651566,-151.0,0.00046575,7]
[356246475,1742136651576,-151.0,0.00046575,7]
[356246476,1742136651589,-151.0,0.00046575,7]
[356246477,1742136651599,-151.0,0.00046575,7]
[356246478,1742136651608,-288.700751,0.00046575,14]
[356246479,1742136651619,-151.0,0.00046575,14]
[356246480,1742136651628,-151.0,0.00046575,14]
[356246481,1742136651640,-151.0,0.00046575,14]
[356246482,1742136651649,-151.0,0.00046575,14]
[356246483,1742136651661,-151.563701,0.00046575,10]
[356246484,1742136651671,-500.0,0.00046575,120]
[356246485,1742136651680,-500.0,0.00046575,120]
[356246486,1742136651690,-500.0,0.00046575,120]
[356246487,1742136651703,-478.8,0.00046575,120]
[356246488,1742136651713,-229.78,0.00046575,120]
[356246489,1742136651723,-151.0,0.00046575,14]
[356246490,1742136651733,-151.0,0.00046575,14]
[356246491,1742136651743,-248.801888,0.00046575,14]
[356246492,1742136651752,-248.801888,0.00046575,14]
[356246493,1742136651762,-248.801888,0.00046575,14]
[356246494,1742136651771,-248.801888,0.00046575,14]
[356246495,1742136651781,-500.0,0.00046575,120]